fUST/lending_fUST_20241024
["ID","MTS","AMOUNT","RATE_DAILY","PERIOD"]
[340740281,1729767038934,-790.84,0.00025719,3]
[340740282,1729767038944,-28961.95573511,0.00025727,3]
[340740295,1729767040901,-216.22,0.00025718,10]
[340740296,1729767040911,-10718.11939481,0.00025727,3]
[340740297,1729767040923,-2806.12410218,0.00025727,3]
[340740298,1729767040935,-208.731893,0.00025728,7]
[340740299,1729767040945,-208.731893,0.00025728,7]
[340740300,1729767040955,-78.49108664,0.00025728,7]
[340740308,1729767043711,-146.55750736,0.00025728,7]
[340740309,1729767043721,-293.319572,0.00025728,7]
[340740310,1729767043730,-18708.44400474,0.00025729,3]
[340740343,1729767046563,-487.1919645,0.00025729,3]
[340740345,1729767046575,-3191.39570742,0.00025729,3]
[340740350,1729767046610,-7115.62899351,0.00025729,3]
[340740362,1729768057284,1998.0,0.00022,60]
[340740363,1729768231598,273.37336231,0.00016,2]
[340740364,1729768231903,-931.20480663,0.00024189,2]
[340740388,1729768237949,-238.51859487,0.00024189,2]
[340740389,1729768237959,-783.9329236,0.00024284,2]
[340740390,1729768237968,-228.903189,0.00024431,2]
[340740391,1729768237978,-294.0,0.0002465,3]
[340740392,1729768237987,-7186.886599,0.00025094,2]
[340740393,1729768237997,-300.0,0.00025188,2]
[340740394,1729768238006,-300.0,0.00025189,2]
[340740395,1729768238016,-500.0,0.000253,3]
[340740396,1729768238026,-500.0,0.000253,3]
[340740397,1729768238035,-500.0,0.000253,3]
[340740398,1729768238045,-500.0,0.000253,3]
[340740399,1729768238055,-1000.0,0.00025624,2]
[340740400,1729768238064,-176.05,0.00025685,3]
[340740401,1729768238074,-528.15,0.00025685,3]
[340740402,1729768238083,-437.38,0.00025685,3]
[340740403,1729768238093,-180.18,0.00025686,10]
[340740404,1729768238103,-185.5490106,0.00025695,2]
[340740405,1729768238112,-39689.40343249,0.00025695,3]
[340740415,1729768239983,-3229.78404267,0.00025695,3]
[340740416,1729768239995,-10412.35011794,0.00025695,3]
[340740417,1729768240007,-295.83716802,0.00025695,3]
[340740439,1729768510450,273.37336231,0.00016,2]
[340740440,1729768526265,273.37336231,0.00016,2]
[340740441,1729768542699,273.37336231,0.00016,2]
[340740442,1729768560286,273.37336231,0.00016,2]
[340740443,1729768575570,273.37336231,0.00016,2]
[340740444,1729768592442,273.37336231,0.00016,2]
[340740445,1729768607211,273.37336231,0.00016,2]
[340740446,1729768622415,273.37336231,0.00016,2]
[340740447,1729768637809,273.37336231,0.00016,2]
[340740448,1729768653675,273.37336231,0.00016,2]
[340740449,1729768669551,273.37336231,0.00016,2]
[340740450,1729768685252,273.37336231,0.00016,2]
[340740451,1729768701157,273.37336231,0.00016,2]
[340740452,1729768716362,273.37336231,0.00016,2]
[340740453,1729768721714,293.58835587,0.00019,15]
[340740454,1729768732650,273.37336231,0.00016,2]
[340740455,1729768748562,273.37336231,0.00016,2]
[340740456,1729768750405,500.0,0.00019,15]
[340740457,1729768764014,273.37336231,0.00016,2]
[340740458,1729768779195,273.37336231,0.00016,2]
[340740459,1729768795055,273.37336231,0.00016,2]
[340740460,1729768812745,273.37336231,0.00016,2]
[340740461,1729768828670,273.37336231,0.00016,2]
[340740462,1729768844023,273.37336231,0.00016,2]
[340740463,1729768856772,500.0,0.00019,15]
[340740464,1729768859438,273.37336231,0.00016,2]
[340740465,1729768875914,273.37336231,0.00016,2]
[340740466,1729768891833,273.37336231,0.00016,2]
[340740467,1729768907580,273.37336231,0.00016,2]
[340740468,1729768923597,273.37336231,0.00016,2]
[340740469,1729768940092,273.37336231,0.00016,2]
[340740470,1729768955628,273.37336231,0.00016,2]
[340740471,1729768985973,546.74672462,0.00016,2]
[340740472,1729769001791,273.37336231,0.00016,2]
[340740473,1729769017517,255.80526366,0.00016,2]
[340740474,1729769106495,500.0,0.00019,15]
[340740483,1729769219661,200.0,0.00019,15]
[340740488,1729769317159,805.22,0.00019,15]
[340740490,1729769327341,322.67628311,0.00022,120]
[340740491,1729769384398,500.0,0.00019,15]
[340740503,1729769432269,-250.0,0.00021646,2]
[340740504,1729769432280,-203.0138321,0.00021753,2]
[340740505,1729769432290,-1268.92928322,0.00021791,2]
[340740506,1729769432307,-1731.07071678,0.00021791,2]
[340740507,1729769432317,-289.53614722,0.000222,2]
[340740508,1729769432326,-289.53614721,0.0002226,2]
[340740509,1729769432336,-500.0,0.000223,3]
[340740510,1729769432345,-289.53614721,0.00022319,2]
[340740511,1729769432358,-300.0,0.00022373,2]
[340740512,1729769432371,-300.0,0.00022373,2]
[340740513,1729769432381,-185.5490106,0.00022374,2]
[340740514,1729769432392,-10405.24452938,0.00022374,2]
[340740515,1729769432407,-964.13834818,0.00022374,2]
[340740525,1729769438189,-1090.959537,0.00022374,2]
[340740526,1729769438548,-12419.65758544,0.00022374,2]
[340740527,1729769438559,-458.6915227,0.00022419,2]
[340740528,1729769438568,-250.0,0.00022726,2]
[340740529,1729769438577,-250.0,0.00022788,2]
[340740530,1729769438587,-500.1081807,0.00022805,2]
[340740531,1729769438596,-250.0,0.0002285,2]
[340740532,1729769438605,-250.0,0.00022913,2]
[340740533,1729769438613,-250.0,0.00022975,2]
[340740534,1729769438623,-6775.3624149,0.0002303,2]
[340740535,1729769438633,-250.0,0.00023037,2]
[340740536,1729769438643,-5281.1759176,0.00023051,2]
[340740537,1729769438653,-160.609006,0.00023053,2]
[340740538,1729769438664,-250.0,0.000231,2]
[340740539,1729769438673,-250.0,0.00023162,2]
[340740540,1729769438683,-250.0,0.00023224,2]
[340740541,1729769438692,-2406.9021214,0.00023251,2]
[340740542,1729769438701,-250.0,0.00023287,2]
[340740543,1729769438710,-250.0,0.00023349,2]
[340740544,1729769438719,-250.0,0.00023411,2]
[340740545,1729769438728,-250.0,0.00023474,2]
[340740546,1729769438738,-250.0,0.00023536,2]
[340740547,1729769438748,-250.0,0.00023598,2]
[340740548,1729769438757,-250.0,0.00023661,2]
[340740549,1729769438770,-280.0,0.0002372,3]
[340740550,1729769438783,-250.0,0.00023723,2]
[340740551,1729769438792,-250.0,0.00023785,2]
[340740552,1729769438802,-250.0,0.00023848,2]
[340740553,1729769438815,-250.0,0.0002391,2]
[340740554,1729769438826,-300.0,0.00024303,2]
[340740555,1729769438835,-1700.325051,0.00024605,2]
[340740556,1729769438848,-300.0,0.00024611,2]
[340740557,1729769438859,-1999.0,0.0002499,2]
[340740558,1729769438868,-280.0,0.0002508,10]
[340740559,1729769438879,-175.474865,0.00025094,2]
[340740560,1729769438888,-1700.325051,0.00025105,2]
[340740561,1729769438897,-175.474865,0.00025136,2]
[340740562,1729769438906,-175.474865,0.00025177,2]
[340740563,1729769438916,-175.474865,0.00025219,2]
[340740564,1729769438927,-1000.0,0.00025586,2]
[340740565,1729769438937,-1700.325051,0.00025605,2]
[340740566,1729769438949,-659.21,0.00025645,3]
[340740567,1729769438961,-150.15,0.00025645,10]
[340740568,1729769438970,-750.79,0.00025645,10]
[340740569,1729769438979,-13343.3739017,0.00025655,3]
[340740570,1729769438988,-36205.3874989,0.00025655,3]
[340740571,1729769438998,-151.0,0.00025655,7]
[340740572,1729769439008,-151.0,0.00025655,7]
[340740573,1729769439018,-151.0,0.00025655,7]
[340740574,1729769439027,-153.521561,0.00025655,7]
[340740575,1729769439036,-151.0,0.00025655,7]
[340740576,1729769439047,-151.0,0.00025655,7]
[340740577,1729769439057,-905.941063,0.00025655,7]
[340740578,1729769439067,-905.941063,0.00025655,7]
[340740579,1729769439076,-905.941063,0.00025655,7]
[340740580,1729769439086,-905.941063,0.00025655,7]
[340740581,1729769439095,-1779.22524,0.00025655,7]
[340740582,1729769439104,-1779.22524,0.00025655,7]
[340740583,1729769439113,-1779.22524,0.00025655,7]
[340740584,1729769439123,-1779.22524,0.00025655,7]
[340740585,1729769439131,-212.281607,0.00025656,7]
[340740586,1729769439140,-151.0,0.00025656,7]
[340740587,1729769439150,-151.0,0.00025656,7]
[340740588,1729769439160,-905.941063,0.00025656,7]
[340740589,1729769439169,-905.941063,0.00025656,7]
[340740590,1729769439178,-905.941063,0.00025656,7]
[340740591,1729769439188,-905.941063,0.00025656,7]
[340740592,1729769439197,-1779.22524,0.00025656,7]
[340740593,1729769439206,-1779.22524,0.00025656,7]
[340740594,1729769439215,-1779.22524,0.00025656,7]
[340740595,1729769439228,-1779.22524,0.00025656,7]
[340740596,1729769439239,-6628.94596895,0.00025656,3]
[340740612,1729769443115,-2869.64041206,0.00025656,3]
[340740631,1729769445988,-3844.78752069,0.00025656,3]
[340740633,1729769445998,-12281.24959075,0.00025656,3]
[340740668,1729770500774,205.06170706,0.00016,2]
[340740669,1729770561197,164.245478,0.00013973,2]
[340740745,1729770632448,-250.0,0.00023724,2]
[340740746,1729770632458,-161.623514,0.00024258,2]
[340740747,1729770632467,-161.623514,0.00024384,2]
[340740748,1729770632477,-254.0,0.000244,3]
[340740749,1729770632487,-3000.0,0.0002441,2]
[340740750,1729770632496,-161.623514,0.00024511,2]
[340740751,1729770632505,-680.1300204,0.00024605,2]
[340740752,1729770632515,-161.623514,0.00024637,2]
[340740753,1729770632525,-161.623514,0.00024763,2]
[340740754,1729770632534,-161.623514,0.0002489,2]
[340740755,1729770632544,-795.85904937,0.00024899,2]
[340740756,1729770632554,-297.4,0.0002498,3]
[340740757,1729770632563,-300.0,0.00024988,2]
[340740758,1729770632572,-300.0,0.00024988,2]
[340740759,1729770632582,-219.94347822,0.00024988,2]
[340740760,1729770632591,-12009.0365115,0.00024989,3]
[340740761,1729770632601,-6603.31788831,0.00024989,3]
[340740805,1729770638448,-27177.73775619,0.00024989,3]
[340740809,1729770638469,-585.95713106,0.00024989,2]
[340740810,1729770638478,-585.95713106,0.00024989,2]
[340740812,1729770638488,-585.95713106,0.00024989,2]
[340740813,1729770638498,-585.95713106,0.00024989,2]
[340740814,1729770638508,-585.95713106,0.00024989,2]
[340740815,1729770638518,-585.95713106,0.00024989,2]
[340740816,1729770638527,-585.95713106,0.00024989,2]
[340740817,1729770638537,-585.95713106,0.00024989,2]
[340740818,1729770638547,-585.95713106,0.00024989,2]
[340740819,1729770638556,-585.95713106,0.00024989,2]
[340740820,1729770638568,-585.95713106,0.00024989,2]
[340740821,1729770638579,-585.95713106,0.00024989,2]
[340740822,1729770638590,-585.95713106,0.00024989,2]
[340740824,1729770638599,-65.8407505,0.00024989,2]
[340741287,1729770643157,-520.11638056,0.00024989,2]
[340741289,1729770643166,-585.95713106,0.00024989,2]
[340741291,1729770643176,-585.95713106,0.00024989,2]
[340741293,1729770643186,-585.95713106,0.00024989,2]
[340741295,1729770643195,-585.95713106,0.00024989,2]
[340741297,1729770643204,-585.95713106,0.00024989,2]
[340741299,1729770643214,-585.95713106,0.00024989,2]
[340741301,1729770643224,-585.95713106,0.00024989,2]
[340741303,1729770643234,-585.95713106,0.00024989,2]
[340741305,1729770643243,-585.95713106,0.00024989,2]
[340741307,1729770643253,-585.95713106,0.00024989,2]
[340741310,1729770643265,-585.95713106,0.00024989,2]
[340741312,1729770643274,-585.95713106,0.00024989,2]
[340741314,1729770643287,-585.95713106,0.00024989,2]
[340741316,1729770643297,-585.95713106,0.00024989,2]
[340741318,1729770643307,-585.95713106,0.00024989,2]
[340741320,1729770643318,-585.95713106,0.00024989,2]
[340741322,1729770643327,-585.95713106,0.00024989,2]
[340741324,1729770643337,-585.95713106,0.00024989,2]
[340741326,1729770643346,-585.95713106,0.00024989,2]
[340741328,1729770643358,-585.95713106,0.00024989,2]
[340741330,1729770643368,-585.95713106,0.00024989,2]
[340741332,1729770643377,-585.95713106,0.00024989,2]
[340741334,1729770643387,-585.95713106,0.00024989,2]
[340741336,1729770643397,-585.95713106,0.00024989,2]
[340741338,1729770643406,-585.95713106,0.00024989,2]
[340741340,1729770643416,-585.95713106,0.00024989,2]
[340741342,1729770643426,-585.95713106,0.00024989,2]
[340741344,1729770643435,-585.95713106,0.00024989,2]
[340741346,1729770643446,-585.95713106,0.00024989,2]
[340741348,1729770643456,-585.95713106,0.00024989,2]
[340741350,1729770643466,-585.95713106,0.00024989,2]
[340741352,1729770643475,-585.95713106,0.00024989,2]
[340741354,1729770643484,-585.95713106,0.00024989,2]
[340741356,1729770643494,-585.95713106,0.00024989,2]
[340741358,1729770643503,-585.95713106,0.00024989,2]
[340741360,1729770643513,-585.95713106,0.00024989,2]
[340741362,1729770643523,-585.95713106,0.00024989,2]
[340741364,1729770643534,-585.95713106,0.00024989,2]
[340741366,1729770643544,-585.95713106,0.00024989,2]
[340741369,1729770643555,-585.95713106,0.00024989,2]
[340741371,1729770643567,-585.95713106,0.00024989,2]
[340741373,1729770643576,-585.95713106,0.00024989,2]
[340741375,1729770643586,-585.95713106,0.00024989,2]
[340741377,1729770643596,-585.95713106,0.00024989,2]
[340741379,1729770643606,-585.95713106,0.00024989,2]
[340741381,1729770643616,-585.95713106,0.00024989,2]
[340741383,1729770643625,-585.95713106,0.00024989,2]
[340741385,1729770643635,-585.95713106,0.00024989,2]
[340741387,1729770643645,-585.95713106,0.00024989,2]
[340741389,1729770643655,-48036.146046,0.0002499,3]
[340741391,1729770643664,-101343.166933,0.0002499,3]
[340741393,1729770643674,-151.0,0.0002499,7]
[340741394,1729770643684,-151.0,0.0002499,7]
[340741397,1729770643694,-151.0,0.0002499,7]
[340741399,1729770643703,-151.0,0.0002499,7]
[340741401,1729770643714,-543.564638,0.0002499,7]
[340741403,1729770643724,-543.564638,0.0002499,7]
[340741405,1729770643735,-151.0,0.0002499,7]
[340741407,1729770643744,-151.0,0.00024999,7]
[340741409,1729770643754,-518.475672,0.00024999,7]
[340741411,1729770643764,-518.475672,0.00024999,7]
[340741413,1729770643773,-461.526132,0.00024999,7]
[340741415,1729770643783,-461.526132,0.00024999,7]
[340741417,1729770643793,-151.0,0.00024999,7]
[340741419,1729770643802,-458.603172,0.00024999,7]
[340741421,1729770643812,-151.0,0.00024999,7]
[340741423,1729770643822,-151.0,0.00024999,7]
[340741425,1729770643832,-151.0,0.00024999,7]
[340741427,1729770643841,-151.0,0.00024999,7]
[340741429,1729770643850,-151.0,0.00024999,7]
[340741431,1729770643860,-151.0,0.00024999,7]
[340741433,1729770643869,-151.0,0.00024999,7]
[340741435,1729770643878,-151.0,0.00024999,7]
[340741437,1729770643887,-648.077347,0.00024999,7]
[340741439,1729770643896,-648.077347,0.00024999,7]
[340741441,1729770643907,-151.0,0.00024999,7]
[340741443,1729770643917,-151.30934,0.00024999,7]
[340741446,1729770643926,-151.0,0.00024999,7]
[340741448,1729770643936,-151.0,0.00024999,7]
[340741449,1729770643945,-151.0,0.00024999,7]
[340741451,1729770643955,-151.0,0.00024999,7]
[340741453,1729770643964,-151.0,0.00024999,7]
[340741454,1729770643974,-151.0,0.00024999,7]
[340741455,1729770643984,-151.0,0.00024999,7]
[340741456,1729770643994,-160.398864,0.00024999,7]
[340741457,1729770644005,-1186.398563,0.00024999,7]
[340741458,1729770644015,-1186.398563,0.00024999,7]
[340741459,1729770644025,-151.0,0.00024999,7]
[340741460,1729770644035,-1186.398563,0.00024999,7]
[340741462,1729770644047,-1186.398563,0.00024999,7]
[340741464,1729770644056,-151.0,0.00024999,7]
[340741466,1729770644067,-151.0,0.00024999,7]
[340741468,1729770644076,-151.0,0.00024999,7]
[340741470,1729770644085,-151.0,0.00024999,7]
[340741472,1729770644095,-180.624518,0.00024999,7]
[340741474,1729770644105,-180.624518,0.00024999,7]
[340741476,1729770644114,-180.624518,0.00024999,7]
[340741478,1729770644124,-180.624518,0.00024999,7]
[340741481,1729770644136,-151.0,0.00024999,7]
[340741483,1729770644147,-151.0,0.00024999,7]
[340741485,1729770644157,-1067.535144,0.00024999,7]
[340741487,1729770644167,-1067.535144,0.00024999,7]
[340741489,1729770644176,-1067.535144,0.00024999,7]
[340741491,1729770644186,-1067.535144,0.00024999,7]
[340741492,1729770644196,-3686.491774,0.00024999,7]
[340741494,1729770644205,-3686.491774,0.00024999,7]
[340741496,1729770644215,-151.0,0.00024999,7]
[340741498,1729770644226,-151.0,0.00024999,7]
[340741501,1729770644238,-151.0,0.00024999,7]
[340741503,1729770644249,-3686.491774,0.00024999,7]
[340741505,1729770644259,-151.0,0.00024999,7]
[340741507,1729770644270,-3686.491774,0.00024999,7]
[340741509,1729770644282,-151.0,0.00024999,7]
[340741511,1729770644292,-151.0,0.00024999,7]
[340741513,1729770644302,-151.0,0.00024999,7]
[340741515,1729770644312,-151.0,0.00024999,7]
[340741517,1729770644323,-151.0,0.00024999,7]
[340741519,1729770644334,-151.0,0.00024999,7]
[340741521,1729770644344,-151.0,0.00024999,7]
[340741523,1729770644353,-543.564638,0.00024999,7]
[340741525,1729770644366,-543.564638,0.00024999,7]
[340741527,1729770644376,-543.564638,0.00024999,7]
[340741530,1729770644386,-543.564638,0.00024999,7]
[340741531,1729770644395,-543.564638,0.00024999,7]
[340741534,1729770644405,-543.564638,0.00024999,7]
[340741536,1729770644414,-151.0,0.00024999,7]
[340741537,1729770644424,-151.0,0.00024999,7]
[340741539,1729770644434,-151.0,0.00024999,7]
[340741541,1729770644444,-27242.27945946,0.00025,15]
[340741545,1729770644468,-3419.75830989,0.00025,15]
[340745265,1729771325319,500.0,0.00019,15]
[340745266,1729771337817,500.0,0.00019,15]
[340745267,1729771363078,500.0,0.00019,15]
[340745268,1729771372860,500.0,0.00019,15]
[340745269,1729771387085,500.0,0.00019,15]
[340745270,1729771397721,500.0,0.00019,15]
[340745271,1729771413983,500.0,0.00019,15]
[340745272,1729771466644,500.0,0.00019,15]
[340745321,1729771763183,182.122739,0.00013973,2]
[340745322,1729771782793,500.0,0.00019,15]
[340745362,1729771832337,-300.0,0.00019999,2]
[340745364,1729771832346,-200.00310107,0.00019999,2]
[340745366,1729771832358,-99.99689893,0.00019999,2]
[340745368,1729771832367,-12464.9838628,0.0002,15]
[340745369,1729771832377,-300.0,0.00021777,2]
[340745371,1729771832386,-160.819163,0.0002189,2]
[340745373,1729771832396,-160.819163,0.00021966,2]
[340745375,1729771832407,-420.0,0.00021999,2]
[340745377,1729771832416,-160.819163,0.00022042,2]
[340745379,1729771832426,-160.819163,0.00022118,2]
[340745381,1729771832435,-160.819163,0.00022194,2]
[340745383,1729771832444,-160.819163,0.0002227,2]
[340745385,1729771832454,-160.819163,0.00022346,2]
[340745387,1729771832463,-160.819163,0.00022422,2]
[340745389,1729771832472,-179.6460999,0.00022479,2]
[340745391,1729771832483,-160.819163,0.00022498,2]
[340745393,1729771832492,-379.58637822,0.00022554,2]
[340745395,1729771832502,-3121.21786939,0.00022554,2]
[340745654,1729771838664,-517.6807511,0.00022554,2]
[340745831,1729771840509,-21261.10137951,0.00022554,2]
[340745832,1729771840518,-160.819163,0.00022574,2]
[340745833,1729771840528,-160.819163,0.0002265,2]
[340745834,1729771840538,-160.819163,0.00022726,2]
[340745835,1729771840548,-160.819163,0.00022802,2]
[340745836,1729771840558,-465.0507527,0.00022869,2]
[340745837,1729771840568,-160.819163,0.00022878,2]
[340745838,1729771840578,-160.819163,0.00022954,2]
[340745839,1729771840588,-160.819163,0.0002303,2]
[340745840,1729771840598,-696.37666819,0.00023038,2]
[340745841,1729771840607,-3000.0,0.00023138,2]
[340745842,1729771840618,-500.0,0.000235,2]
[340745843,1729771840628,-500.0,0.000235,2]
[340745844,1729771840639,-160.609006,0.0002357,2]
[340745845,1729771840649,-500.0,0.00024,2]
[340745847,1729771840660,-500.0,0.00024,2]
[340745849,1729771840670,-587.0,0.00024199,2]
[340745851,1729771840680,-242.0,0.000244,7]
[340745853,1729771840691,-696.37666819,0.00024468,2]
[340745855,1729771840701,-500.0,0.000245,14]
[340745857,1729771840711,-544.1040164,0.00024605,2]
[340745859,1729771840722,-453.75,0.00024979,3]
[340745861,1729771840732,-453.75,0.00024979,3]
[340745864,1729771840742,-9006.77738361,0.00024989,3]
[340745867,1729771840762,-26095.8654854,0.00024989,3]
[340745869,1729771840773,-500.0,0.00024989,2]
[340745871,1729771840783,-500.0,0.00024989,2]
[340745873,1729771840793,-500.0,0.00024989,2]
[340745875,1729771840803,-500.0,0.00024989,2]
[340745877,1729771840813,-500.0,0.00024989,2]
[340745879,1729771840822,-500.0,0.00024989,2]
[340745881,1729771840832,-500.0,0.00024989,2]
[340745883,1729771840842,-500.0,0.00024989,2]
[340745885,1729771840851,-500.0,0.00024989,2]
[340745887,1729771840861,-500.0,0.00024989,2]
[340745889,1729771840871,-500.0,0.00024989,2]
[340745891,1729771840881,-500.0,0.00024989,2]
[340745893,1729771840890,-500.0,0.00024989,2]
[340745895,1729771840902,-500.0,0.00024989,2]
[340745897,1729771840915,-500.0,0.00024989,2]
[340745899,1729771840927,-500.0,0.00024989,2]
[340745901,1729771840938,-512.37246458,0.00024989,2]
[340745903,1729771840949,-500.0,0.00024989,2]
[340745905,1729771840959,-500.0,0.00024989,2]
[340745908,1729771840970,-500.0,0.00024989,2]
[340745910,1729771840979,-500.0,0.00024989,2]
[340745912,1729771840991,-500.0,0.00024989,2]
[340745914,1729771841003,-500.0,0.00024989,2]
[340745916,1729771841013,-500.0,0.00024989,2]
[340745918,1729771841023,-500.0,0.00024989,2]
[340745920,1729771841034,-500.0,0.00024989,2]
[340745922,1729771841043,-500.0,0.00024989,2]
[340745924,1729771841054,-500.0,0.00024989,2]
[340745926,1729771841064,-500.0,0.00024989,2]
[340745928,1729771841073,-500.0,0.00024989,2]
[340745930,1729771841083,-500.0,0.00024989,2]
[340745932,1729771841092,-500.0,0.00024989,2]
[340745934,1729771841102,-500.0,0.00024989,2]
[340745936,1729771841112,-500.0,0.00024989,2]
[340745938,1729771841121,-500.0,0.00024989,2]
[340745940,1729771841131,-250.0,0.00024989,2]
[340745942,1729771841142,-500.0,0.00024989,2]
[340745944,1729771841152,-500.0,0.00024989,2]
[340745946,1729771841163,-500.0,0.00024989,2]
[340745948,1729771841173,-505.56,0.00024989,2]
[340745950,1729771841183,-500.0,0.00024989,2]
[340745952,1729771841192,-500.0,0.00024989,2]
[340745954,1729771841202,-200.0,0.00024989,2]
[340745956,1729771841212,-500.0,0.00024989,2]
[340745959,1729771841221,-500.0,0.00024989,2]
[340745961,1729771841232,-500.0,0.00024989,2]
[340745963,1729771841242,-500.0,0.00024989,2]
[340745965,1729771841251,-500.0,0.00024989,2]
[340745967,1729771841261,-500.0,0.00024989,2]
[340745969,1729771841271,-500.0,0.00024989,2]
[340745971,1729771841281,-500.0,0.00024989,2]
[340745973,1729771841291,-500.0,0.00024989,2]
[340745975,1729771841301,-500.0,0.00024989,2]
[340745977,1729771841310,-500.0,0.00024989,2]
[340745978,1729771841320,-500.0,0.00024989,2]
[340745980,1729771841330,-27020.3321508,0.0002499,3]
[340745982,1729771841340,-78287.5964561,0.0002499,3]
[340745984,1729771841349,-152.763232,0.0002499,7]
[340745986,1729771841359,-151.0,0.0002499,7]
[340745989,1729771841374,-151.0,0.0002499,7]
[340745991,1729771841384,-583.269613,0.0002499,7]
[340745992,1729771841394,-583.269613,0.0002499,7]
[340745994,1729771841404,-326.138783,0.0002499,7]
[340745996,1729771841413,-326.138783,0.0002499,7]
[340745998,1729771841424,-157.094667,0.0002499,7]
[340746000,1729771841434,-435.673014,0.0002499,7]
[340746002,1729771841444,-435.673014,0.0002499,7]
[340746004,1729771841454,-54698.64369641,0.00024999,14]
[340746006,1729771841464,-151.0,0.00024999,7]
[340746009,1729771841473,-151.0,0.00024999,7]
[340746011,1729771841483,-282.437359,0.00024999,7]
[340746013,1729771841494,-415.373519,0.00024999,7]
[340746015,1729771841503,-415.373519,0.00024999,7]
[340746017,1729771841512,-151.0,0.00024999,7]
[340746019,1729771841521,-166.593986,0.00024999,7]
[340746021,1729771841531,-166.593986,0.00024999,7]
[340746023,1729771841541,-151.0,0.00024999,7]
[340746025,1729771841551,-151.0,0.00024999,7]
[340746027,1729771841560,-151.0,0.00024999,7]
[340746029,1729771841571,-151.0,0.00024999,7]
[340746030,1729771841581,-300.998852,0.00024999,7]
[340746032,1729771841591,-949.11885,0.00024999,7]
[340746035,1729771841601,-949.11885,0.00024999,7]
[340746037,1729771841611,-151.0,0.00024999,7]
[340746038,1729771841620,-151.0,0.00024999,7]
[340746040,1729771841630,-151.0,0.00024999,7]
[340746042,1729771841639,-151.0,0.00024999,7]
[340746044,1729771841649,-583.269613,0.00024999,7]
[340746046,1729771841661,-583.269613,0.00024999,7]
[340746048,1729771841672,-326.138783,0.00024999,7]
[340746050,1729771841681,-326.138783,0.00024999,7]
[340746053,1729771841692,-435.673014,0.00024999,7]
[340746055,1729771841702,-435.673014,0.00024999,7]
[340746057,1729771841714,-119337.96223065,0.00025,15]
[340746059,1729771841724,-151.0,0.00025,7]
[340746061,1729771841735,-155.33356,0.00025,7]
[340746063,1729771841748,-151.738774,0.00025,7]
[340746065,1729771841758,-151.0,0.00025,7]
[340746068,1729771841768,-151.0,0.00025,7]
[340746070,1729771841778,-151.0,0.00025,7]
[340746071,1729771841788,-151.0,0.00025,7]
[340746074,1729771841798,-151.0,0.00025,7]
[340746076,1729771841807,-153.748025,0.00025,7]
[340746078,1729771841817,-151.0,0.00025,7]
[340746080,1729771841826,-151.0,0.00025,7]
[340746082,1729771841836,-151.0,0.00025,7]
[340746084,1729771841846,-151.0,0.00025,7]
[340746085,1729771841856,-187.858704,0.00025,7]
[340746088,1729771841866,-187.858704,0.00025,7]
[340746089,1729771841876,-466.628105,0.00025,7]
[340746091,1729771841885,-466.628105,0.00025,7]
[340746093,1729771841895,-151.0,0.00025,7]
[340746095,1729771841904,-854.028115,0.00025,7]
[340746098,1729771841916,-854.028115,0.00025,7]
[340746100,1729771841926,-151.0,0.00025,7]